Workbook

Sheet Readme
A1: IEA EBC Annex 68 – Indoor Air Quality Design and Control in Low-energy Residential Buildings
A2: SUBTASK 1: Defining the metrics
A4: The present Excel Worksheet aims at calculating the Indoor Air Quality Indices defined in Subtask 1 report.
A6: There is two ways to use this worksheet depending on your inputs:
A8: Case 1: you have already calculated the mean concentration for long-term exposure and % of exceeding the short-term concentration
A9: Go to the "Inputs" sheet, fill the sheet with your values and press the "Calculate" button
A10: Results are displayed in Tables ("Outputs") and Graphs (Graph Long-term ELV...)
A12: Case 2: you have not already calculated the mean concentration for long-term exposure and % of exceeding the short-term concentration
A13: Go to the "Transient_Data" sheet, fill the sheet with your hourly values. In this sheet, the first day is Monday. You can define a whole year of data (8760h).
A14: Define the schedules of occupation (Week and Weekend days).
A15: Press the "Calculate" button.
A16: Results are displayed in Tables ("Outputs") and Graphs (Graph Long-term ELV...)
A19: Note
A20: To avoid mistake, only highlighted cells can be edited. To remove this protection, use the password: ST1
A23: Contact:
A24: Marc Abadie (mabadie@univ-lr.fr) - University of La Rochelle (France)
A25: Louis Cony (louis.cony-renaud-salis@univ-lr.fr) - University of La Rochelle (France)
A27: How to cite this tool: Cony L., Abadie M. IAQ Indices tool. IEA EBC Annex 68 – Indoor Air Quality Design and Control in Low-energy Residential Buildings - Subtask 1, 1st October 2019.

Sheet Inputs
B1: Long-term Exposure
B2: Concentration | C2: Unit | D2: Averaging period | E2: Source
A3: Acetaldehyde | B3: 0 | C3: µg/m³ | D3: 1 year | E3: Japan
A4: Acrolein | B4: 0 | C4: µg/m³ | D4: 1 year | E4: USA-California
A5: a-Pinene | B5: 0 | C5: µg/m³ | D5: 1 year | E5: Germany
A6: Benzene | B6: 0 | C6: µg/m³ | D6: whole life (carcinogenic risk level: 10-6) | E6: France
A7: Carbon dioxide | B7: - | C7: ppm | D7: - | E7: -
A8: Formaldehyde | B8: 0 | C8: µg/m³ | D8: 1 year | E8: USA-California
A9: Naphthalene | B9: 0 | C9: µg/m³ | D9: 1 year | E9: Germany
A10: Nitrogen dioxide | B10: 0 | C10: µg/m³ | D10: 1 year | E10: France, Canada
A11: PM10 | B11: 1500 | C11: µg/m³ | D11: 1 year | E11: WHO
A12: PM2.5 | B12: 48.95384615 | C12: µg/m³ | D12: 1 year | E12: WHO
A13: Radon | B13: 0 | C13: Bq/m³ | D13: 1 year | E13: Austria, Canada, Hong-Kong
A14: Styrene | B14: 0 | C14: µg/m³ | D14: 1 year | E14: Germany
A15: Toluene | B15: 0 | C15: µg/m³ | D15: 1 year | E15: Portugal
A16: Trichloroethylene | B16: 0 | C16: µg/m³ | D16: whole life (carcinogenic risk level: 10-6) | E16: France
A17: TVOC | B17: - | C17: µg/m³ | D17: -
A18: Mold | B18: 0 | C18: CFU/m³ | D18: 1 year | E18: EU
B21: Short-term Exposure
B22: % | C22: Unit | D22: Averaging period | E22: Source
A23: Acetaldehyde | B23: - | C23: µg/m³ | D23: - | E23: -
A24: Acrolein | B24: 0 | C24: µg/m³ | D24: 1 h | E24: France
A25: a-Pinene | B25: - | C25: µg/m³ | D25: - | E25: -
A26: Benzene | B26: - | C26: µg/m³ | D26: - | E26: -
A27: Carbon dioxide | B27: 0.3333333333 | C27: ppm | D27: 8 h | E27: Portugal
A28: Formaldehyde | B28: 0 | C28: µg/m³ | D28: 1 h | E28: Canada
A29: Naphthalene | B29: - | C29: µg/m³ | D29: - | E29: -
A30: Nitrogen dioxide | B30: 0 | C30: µg/m³ | D30: 1 h | E30: USA-California
A31: PM10 | B31: 1 | C31: µg/m³ | D31: 24 h | E31: WHO
A32: PM2.5 | B32: 1 | C32: µg/m³ | D32: 24 h | E32: WHO
A33: Radon | B33: 0 | C33: Bq/m³ | D33: 8 h | E33: Austria, China, Portugal
A34: Styrene | B34: - | C34: µg/m³ | D34: - | E34: -
A35: Toluene | B35: - | C35: µg/m³ | D35: - | E35: -
A36: Trichloroethylene | B36: - | C36: µg/m³ | D36: - | E36: -
A37: TVOC | B37: 0 | C37: µg/m³ | D37: 8 h | E37: China, Hong-Kong, Portugal
A38: Mold | B38: - | C38: CFU/m³ | D38: - | E38: -
A41: Editable Cells

Sheet Transient_Data
A1: Time | B1: Day | C1: Hour | D1: Acetaldehyde | E1: Acrolein | F1: a-Pinene | G1: Benzene | H1: Carbon dioxide | I1: Formaldehyde | J1: Naphthalene | K1: Nitrogen dioxide | L1: PM10 | M1: PM2.5 | N1: Radon | O1: Styrene | P1: Toluene | Q1: Trichloroethylene | R1: TVOC | S1: Mold | V1: Schedule | W1: Week day | X1: Week end
A2: 0 | B2: Monday | C2: =A2 -> 0 | H2: 1500 | L2: 1500 | M2: 35.5 | R2: 309 | V2: Hour | W2: Occupation | X2: Occupation | Z2: Editable Cells
A3: =A2+1 -> 1 | B3: =B2 -> Monday | C3: =A3 -> 1 | H3: 1500 | L3: 1500 | M3: 33.2 | R3: 311 | V3: =A2 -> 0 | W3: 1 | X3: 0
A4: =A3+1 -> 2 | B4: =B3 -> Monday | C4: 2 | H4: 1500 | L4: 1500 | M4: 39.5 | R4: 310 | V4: =A3 -> 1 | W4: 1 | X4: 0
A5: 3 | B5: Monday | C5: 3 | H5: 1500 | L5: 1500 | M5: 36.6 | R5: 309 | V5: 2 | W5: 1 | X5: 0
A6: 4 | B6: Monday | C6: 4 | H6: 1500 | L6: 1500 | M6: 78.7 | R6: 308 | V6: 3 | W6: 1 | X6: 0
A7: 5 | B7: Monday | C7: 5 | H7: 1500 | L7: 1500 | M7: 141.4 | R7: 306 | V7: 4 | W7: 1 | X7: 0
A8: 6 | B8: Monday | C8: 6 | H8: 1500 | L8: 1500 | M8: 43.6 | R8: 306 | V8: 5 | W8: 1 | X8: 0
A9: 7 | B9: Monday | C9: 7 | H9: 1500 | L9: 1500 | M9: 49.4 | R9: 305 | V9: 6 | W9: 1 | X9: 0
A10: 8 | B10: Monday | C10: 8 | H10: 10000 | L10: 10000 | M10: 54 | R10: 305 | V10: 7 | W10: 1 | X10: 0
A11: 9 | B11: Monday | C11: 9 | H11: 10000 | L11: 10000 | M11: 47.1 | R11: 307 | V11: 8 | W11: 0 | X11: 0
A12: 10 | B12: Monday | C12: 10 | H12: 10000 | L12: 10000 | M12: 41.9 | R12: 306 | V12: 9 | W12: 0 | X12: 0
A13: 11 | B13: Monday | C13: 11 | H13: 10000 | L13: 10000 | M13: 42.6 | R13: 306 | V13: 10 | W13: 0 | X13: 0
A14: 12 | B14: Monday | C14: 12 | H14: 10000 | L14: 10000 | M14: 41.7 | R14: 307 | V14: 11 | W14: 0 | X14: 0
A15: 13 | B15: Monday | C15: 13 | H15: 10000 | L15: 10000 | M15: 39.1 | R15: 306 | V15: 12 | W15: 0 | X15: 0
A16: 14 | B16: Monday | C16: 14 | H16: 10000 | L16: 10000 | M16: 39.9 | R16: 306 | V16: 13 | W16: 0 | X16: 0
A17: 15 | B17: Monday | C17: 15 | H17: 10000 | L17: 10000 | M17: 39 | R17: 306 | V17: 14 | W17: 0 | X17: 0
A18: 16 | B18: Monday | C18: 16 | H18: 10000 | L18: 10000 | M18: 39.3 | R18: 307 | V18: 15 | W18: 0 | X18: 0
A19: 17 | B19: Monday | C19: 17 | H19: 10000 | L19: 10000 | M19: 37.3 | R19: 308 | V19: 16 | W19: 0 | X19: 0
A20: 18 | B20: Monday | C20: 18 | H20: 10000 | L20: 10000 | M20: 36.5 | R20: 310 | V20: 17 | W20: 0 | X20: 0
A21: 19 | B21: Monday | C21: 19 | H21: 1500 | L21: 1500 | M21: 36.3 | R21: 308 | V21: 18 | W21: 0 | X21: 0
A22: 20 | B22: Monday | C22: 20 | H22: 1500 | L22: 1500 | M22: 36.3 | R22: 304 | V22: 19 | W22: 1 | X22: 0
A23: 21 | B23: Monday | C23: 21 | H23: 1500 | L23: 1500 | M23: 36.4 | R23: 305 | V23: 20 | W23: 1 | X23: 0
A24: 22 | B24: Monday | C24: 22 | H24: 1500 | L24: 1500 | M24: 34.7 | R24: 308 | V24: 21 | W24: 1 | X24: 0
A25: 23 | B25: Monday | C25: 23 | H25: 1500 | L25: 1500 | M25: 34.8 | R25: 308 | V25: 22 | W25: 1 | X25: 0
A26: 24 | B26: Tuesday | C26: =C2 -> 0 | V26: 23 | W26: 1 | X26: 0
A27: 25 | B27: =B26 -> Tuesday | C27: =C3 -> 1
A28: 26 | B28: =B27 -> Tuesday | C28: 2
A29: 27 | B29: Tuesday | C29: 3
A30: 28 | B30: Tuesday | C30: 4
A31: 29 | B31: Tuesday | C31: 5
A32: 30 | B32: Tuesday | C32: 6
A33: 31 | B33: Tuesday | C33: 7
A34: 32 | B34: Tuesday | C34: 8
A35: 33 | B35: Tuesday | C35: 9
A36: 34 | B36: Tuesday | C36: 10
A37: 35 | B37: Tuesday | C37: 11
A38: 36 | B38: Tuesday | C38: 12
A39: 37 | B39: Tuesday | C39: 13
A40: 38 | B40: Tuesday | C40: 14
A41: 39 | B41: Tuesday | C41: 15
A42: 40 | B42: Tuesday | C42: 16
A43: 41 | B43: Tuesday | C43: 17
A44: =A43+1 -> 42 | B44: Tuesday | C44: 18
A45: 43 | B45: Tuesday | C45: 19
A46: 44 | B46: Tuesday | C46: 20
A47: 45 | B47: Tuesday | C47: 21
A48: 46 | B48: Tuesday | C48: 22
A49: 47 | B49: Tuesday | C49: 23
A50: 48 | B50: Wednesday | C50: 0
A51: 49 | B51: Wednesday | C51: 1
A52: 50 | B52: Wednesday | C52: 2
A53: 51 | B53: Wednesday | C53: 3
A54: 52 | B54: Wednesday | C54: 4
A55: 53 | B55: Wednesday | C55: 5
A56: 54 | B56: Wednesday | C56: 6
A57: 55 | B57: Wednesday | C57: 7
A58: 56 | B58: Wednesday | C58: 8
A59: 57 | B59: Wednesday | C59: 9
A60: 58 | B60: Wednesday | C60: 10
A61: 59 | B61: Wednesday | C61: 11
A62: 60 | B62: Wednesday | C62: 12
A63: 61 | B63: Wednesday | C63: 13
A64: 62 | B64: Wednesday | C64: 14
A65: 63 | B65: Wednesday | C65: 15
A66: 64 | B66: Wednesday | C66: 16
A67: 65 | B67: Wednesday | C67: 17
A68: 66 | B68: Wednesday | C68: 18
A69: 67 | B69: Wednesday | C69: 19
A70: 68 | B70: Wednesday | C70: 20
A71: 69 | B71: Wednesday | C71: 21
A72: 70 | B72: Wednesday | C72: 22
A73: 71 | B73: Wednesday | C73: 23
A74: 72 | B74: Thursday | C74: 0
A75: 73 | B75: Thursday | C75: 1
A76: 74 | B76: Thursday | C76: 2
A77: 75 | B77: Thursday | C77: 3
A78: 76 | B78: Thursday | C78: 4
A79: 77 | B79: Thursday | C79: 5
A80: 78 | B80: Thursday | C80: 6
A81: 79 | B81: Thursday | C81: 7
A82: 80 | B82: Thursday | C82: 8
A83: 81 | B83: Thursday | C83: 9
A84: 82 | B84: Thursday | C84: 10
A85: 83 | B85: Thursday | C85: 11
A86: 84 | B86: Thursday | C86: 12
A87: 85 | B87: Thursday | C87: 13
A88: 86 | B88: Thursday | C88: 14
A89: 87 | B89: Thursday | C89: 15
A90: 88 | B90: Thursday | C90: 16
A91: 89 | B91: Thursday | C91: =C67 -> 17
A92: 90 | B92: Thursday | C92: 18
A93: 91 | B93: Thursday | C93: 19
A94: 92 | B94: Thursday | C94: 20
A95: 93 | B95: Thursday | C95: 21
A96: 94 | B96: Thursday | C96: 22
A97: 95 | B97: Thursday | C97: 23
A98: 96 | B98: Friday | C98: 0
A99: 97 | B99: Friday | C99: 1
A100: 98 | B100: Friday | C100: 2
A101: 99 | B101: Friday | C101: 3
A102: 100 | B102: Friday | C102: 4
A103: 101 | B103: Friday | C103: 5
A104: 102 | B104: Friday | C104: 6
A105: 103 | B105: Friday | C105: 7
A106: 104 | B106: Friday | C106: 8
A107: 105 | B107: Friday | C107: 9
A108: =A107+1 -> 106 | B108: Friday | C108: 10
A109: 107 | B109: Friday | C109: 11
A110: 108 | B110: Friday | C110: 12
A111: 109 | B111: Friday | C111: 13
A112: 110 | B112: Friday | C112: 14
A113: 111 | B113: Friday | C113: 15
A114: 112 | B114: Friday | C114: 16
A115: 113 | B115: Friday | C115: 17
A116: 114 | B116: Friday | C116: 18
A117: 115 | B117: Friday | C117: 19
A118: 116 | B118: Friday | C118: 20
A119: 117 | B119: Friday | C119: 21
A120: 118 | B120: Friday | C120: 22
A121: 119 | B121: Friday | C121: 23
A122: 120 | B122: Saturday | C122: 0
A123: 121 | B123: Saturday | C123: 1
A124: 122 | B124: Saturday | C124: 2
A125: 123 | B125: Saturday | C125: 3
A126: 124 | B126: Saturday | C126: 4
A127: 125 | B127: Saturday | C127: 5
A128: 126 | B128: Saturday | C128: 6
A129: 127 | B129: Saturday | C129: 7
A130: 128 | B130: Saturday | C130: 8
A131: 129 | B131: Saturday | C131: 9
A132: 130 | B132: Saturday | C132: 10
A133: 131 | B133: Saturday | C133: 11
A134: 132 | B134: Saturday | C134: 12
A135: 133 | B135: Saturday | C135: 13
A136: 134 | B136: Saturday | C136: 14
A137: 135 | B137: Saturday | C137: 15
A138: 136 | B138: Saturday | C138: 16
A139: 137 | B139: Saturday | C139: 17
A140: 138 | B140: Saturday | C140: 18
A141: 139 | B141: Saturday | C141: 19
A142: 140 | B142: Saturday | C142: 20
A143: 141 | B143: Saturday | C143: 21
A144: 142 | B144: Saturday | C144: 22
A145: 143 | B145: Saturday | C145: 23
A146: 144 | B146: Sunday | C146: 0
A147: 145 | B147: Sunday | C147: 1
A148: 146 | B148: Sunday | C148: 2
A149: 147 | B149: Sunday | C149: 3
A150: 148 | B150: Sunday | C150: 4
A151: 149 | B151: Sunday | C151: 5
A152: 150 | B152: Sunday | C152: 6
A153: 151 | B153: Sunday | C153: 7
A154: 152 | B154: Sunday | C154: 8
A155: 153 | B155: Sunday | C155: =C131 -> 9
A156: 154 | B156: Sunday | C156: 10
A157: 155 | B157: Sunday | C157: 11
A158: 156 | B158: Sunday | C158: 12
A159: 157 | B159: Sunday | C159: 13
A160: 158 | B160: Sunday | C160: 14
A161: 159 | B161: Sunday | C161: 15
A162: 160 | B162: Sunday | C162: 16
A163: 161 | B163: Sunday | C163: 17
A164: 162 | B164: Sunday | C164: 18
A165: 163 | B165: Sunday | C165: 19
A166: 164 | B166: Sunday | C166: 20
A167: 165 | B167: Sunday | C167: 21
A168: 166 | B168: Sunday | C168: 22
A169: 167 | B169: Sunday | C169: 23
A170: 168 | B170: =B2 -> Monday | C170: 0
A171: 169 | B171: =B3 -> Monday | C171: 1
A172: =A171+1 -> 170 | B172: Monday | C172: 2
A173: 171 | B173: Monday | C173: 3
A174: 172 | B174: Monday | C174: 4
A175: 173 | B175: Monday | C175: 5
A176: 174 | B176: Monday | C176: 6
A177: 175 | B177: Monday | C177: 7
A178: 176 | B178: Monday | C178: 8
A179: 177 | B179: Monday | C179: 9
A180: 178 | B180: Monday | C180: 10
A181: 179 | B181: Monday | C181: 11
A182: 180 | B182: Monday | C182: 12
A183: 181 | B183: Monday | C183: 13
A184: 182 | B184: Monday | C184: 14
A185: 183 | B185: Monday | C185: 15
A186: 184 | B186: Monday | C186: 16
A187: 185 | B187: Monday | C187: 17
A188: 186 | B188: Monday | C188: 18
A189: 187 | B189: Monday | C189: 19
A190: 188 | B190: Monday | C190: 20
A191: 189 | B191: Monday | C191: 21
A192: 190 | B192: Monday | C192: 22 | R192: 315
A193: 191 | B193: Monday | C193: 23 | R193: 317
A194: 192 | B194: Tuesday | C194: 0 | R194: 318
A195: 193 | B195: Tuesday | C195: 1 | R195: 316
A196: 194 | B196: Tuesday | C196: 2 | R196: 316
A197: 195 | B197: Tuesday | C197: 3 | R197: 315
A198: 196 | B198: Tuesday | C198: 4 | R198: 317
A199: 197 | B199: Tuesday | C199: 5 | R199: 319
A200: 198 | B200: Tuesday | C200: 6 | R200: 319
... 4300 more rows

Sheet Parameters
A1: ELV method parameters | B1: Long-term Exposure | I1: DALY method parameters
B2: ELV | C2: Unit | D2: Averaging period | E2: Source
A3: Acetaldehyde | B3: 48 | C3: µg/m³ | D3: 1 year | E3: Japan | I3: Age (years) | J3: % of population | K3: Cancer ADAF | L3: % of day spent at home | M3: Air intake (m³/day)
A4: Acrolein | B4: 0.35 | C4: µg/m³ | D4: 1 year | E4: USA-California | I4: <= 2 | J4: 3 | K4: 10 | L4: 75 | M4: 7
A5: a-Pinene | B5: 200 | C5: µg/m³ | D5: 1 year | E5: Germany | I5: 2-16 | J5: 19 | K5: 3 | L5: 75 | M5: 13
A6: Benzene | B6: 0.2 | C6: µg/m³ | D6: whole life (carcinogenic risk level: 10-6) | E6: France | I6: >=16 | J6: 78 | K6: 1 | L6: 69 | M6: 15
A7: Carbon dioxide | B7: - | C7: ppm | D7: - | E7: -
A8: Formaldehyde | B8: 9 | C8: µg/m³ | D8: 1 year | E8: USA-California
A9: Naphthalene | B9: 2 | C9: µg/m³ | D9: 1 year | E9: Germany
A10: Nitrogen dioxide | B10: 20 | C10: µg/m³ | D10: 1 year | E10: France
A11: PM10 | B11: 20 | C11: µg/m³ | D11: 1 year | E11: WHO
A12: PM2.5 | B12: 10 | C12: µg/m³ | D12: 1 year | E12: WHO
A13: Radon | B13: 200 | C13: Bq/m³ | D13: 1 year | E13: Austria, Canada
A14: Styrene | B14: 30 | C14: µg/m³ | D14: 1 year | E14: Germany
A15: Toluene | B15: 250 | C15: µg/m³ | D15: 1 year | E15: Portugal
A16: Trichloroethylene | B16: 2 | C16: µg/m³ | D16: whole life (carcinogenic risk level: 10-6) | E16: France
A17: TVOC | B17: - | C17: µg/m³ | D17: -
A18: Mold | B18: 200 | C18: CFU/m³ | D18: 1 year | E18: EU
A21: ELV method parameters | B21: Short-term Exposure
B22: ELV | C22: Unit | D22: Averaging period | E22: Source
A23: Acetaldehyde | B23: - | C23: µg/m³ | D23: - | E23: -
A24: Acrolein | B24: 6.9 | C24: µg/m³ | D24: 1 h | E24: France
A25: a-Pinene | B25: - | C25: µg/m³ | D25: - | E25: -
A26: Benzene | B26: - | C26: µg/m³ | D26: - | E26: -
A27: Carbon dioxide | B27: 1000 | C27: ppm | D27: 8 h | E27: Hong-Kong, Korea
A28: Formaldehyde | B28: 123 | C28: µg/m³ | D28: 1 h | E28: Canada
A29: Naphthalene | B29: - | C29: µg/m³ | D29: - | E29: -
A30: Nitrogen dioxide | B30: 470 | C30: µg/m³ | D30: 1 h | E30: USA-California
A31: PM10 | B31: 50 | C31: µg/m³ | D31: 24 h | E31: WHO
A32: PM2.5 | B32: 25 | C32: µg/m³ | D32: 24 h | E32: WHO
A33: Radon | B33: 400 | C33: Bq/m³ | D33: 8 h | E33: Austria, China, Portugal
A34: Styrene | B34: - | C34: µg/m³ | D34: - | E34: -
A35: Toluene | B35: - | C35: µg/m³ | D35: - | E35: -
A36: Trichloroethylene | B36: - | C36: µg/m³ | D36: - | E36: -
A37: TVOC | B37: 400 | C37: µg/m³ | D37: 8 h | E37: Japan, Korea
A38: Mold | B38: - | C38: CFU/m³ | D38: - | E38: -
A41: Editable Cells

Sheet Outputs
B1: Long-term Exposure
B2: ELV Indices | C2: DALY
A3: Acetaldehyde | B3: 0 | C3: 0
A4: Acrolein | B4: 0 | C4: 0
A5: a-Pinene | B5: 0 | C5: -
A6: Benzene | B6: 0 | C6: 0
A7: Carbon dioxide | B7: - | C7: -
A8: Formaldehyde | B8: 0 | C8: 0
A9: Naphthalene | B9: 0 | C9: 0
A10: Nitrogen dioxide | B10: 0 | C10: 0
A11: PM10 | B11: 75 | C11: -
A12: PM2.5 | B12: 4.895384615 | C12: 2260.463887
A13: Radon | B13: 0 | C13: -
A14: Styrene | B14: 0 | C14: 0
A15: Toluene | B15: 0 | C15: 0
A16: Trichloroethylene | B16: 0 | C16: 0
A17: TVOC | B17: - | C17: -
A18: Mold | B18: 0 | C18: -
B21: Short-term Exposure
B22: %
A23: Acetaldehyde | B23: -
A24: Acrolein | B24: 0
A25: a-Pinene | B25: -
A26: Benzene | B26: -
A27: Carbon dioxide | B27: 0.3333333333
A28: Formaldehyde | B28: 0
A29: Naphthalene | B29: -
A30: Nitrogen dioxide | B30: 0
A31: PM10 | B31: 1
A32: PM2.5 | B32: 1
A33: Radon | B33: 0
A34: Styrene | B34: -
A35: Toluene | B35: -
A36: Trichloroethylene | B36: -
A37: TVOC | B37: 0
A38: Mold | B38: -

Sheet Résultats (hidden)
A1: Substance | B1: CAS | C1: Cmean | D1: DALY | E1: Note | J1: COPY Logue | K1: Substance | L1: CAS | M1: Cmean
A2: 1,1 Dichloroethene | B2: 75-35-4 | D2: ='DALY-Calc'!AG12 -> 0 | E2: Carcinogenic and non carcinogenic | K2: 1,1 Dichloroethene | L2: 75-35-4 | M2: 1.2
A3: 1,1,2,2 Tetrachloroethane | B3: 79-34-5 | D3: ='DALY-Calc'!AG35 -> 0 | E3: Carcinogenic only | K3: 1,1,2,2 Tetrachloroethane | L3: 79-34-5 | M3: 0.42
A4: 1,1,2-Trichloroethane | B4: 79-00-5 | D4: ='DALY-Calc'!AG37 -> 0 | E4: Carcinogenic and non carcinogenic | K4: 1,1,2-Trichloroethane | L4: 79-00-5 | M4: 0.46
A5: 1,2 Dichloroethane | B5: 107-06-2 | D5: ='DALY-Calc'!AG28 -> 0 | E5: Carcinogenic only | K5: 1,2 Dichloroethane | L5: 107-06-2 | M5: 0.34
A6: 1,2-Dibromoethane | B6: 106-93-4 | D6: ='DALY-Calc'!AG23 -> 0 | E6: Carcinogenic only | K6: 1,2-Dibromoethane | L6: 106-93-4 | M6: 0.14
A7: 1,4-Dichlorobenzene | B7: 106-46-7 | D7: ='DALY-Calc'!AG11 -> 0 | E7: Carcinogenic and non carcinogenic | K7: 1,4-Dichlorobenzene | L7: 106-46-7 | M7: 50
A8: 2-Butoxyethanol | B8: 111-76-2 | D8: ='DALY-Calc'!AG27 -> 0 | E8: Not carcinogenic | K8: 2-Butoxyethanol | L8: 111-76-2 | M8: 2.6
A9: 2-Ethoxyethanol | D9: ='DALY-Calc'!AG38 -> 0 | E9: Not carcinogenic | K9: 2-Ethoxyethanol | M9: 0.43
A10: 2-Methoxyethanol | B10: 109-86-4 | D10: ='DALY-Calc'!AG36 -> 0 | E10: Not carcinogenic | K10: 2-Methoxyethanol | L10: 109-86-4 | M10: 0.12
A11: Acetaldehyde | B11: 75-07-0 | C11: 0 | D11: ='DALY-Calc'!AG6 -> 0 | E11: Carcinogenic and non carcinogenic | K11: Acetaldehyde | L11: 75-07-0 | M11: 22
A12: Acrolein | B12: 107-02-8 | C12: 0 | D12: ='DALY-Calc'!AG3 -> 0 | E12: Not carcinogenic | K12: Acrolein | L12: 107-02-8 | M12: 2.3
A13: Acrylonitrile | B13: 107-13-1 | D13: ='DALY-Calc'!AG13 -> 0 | E13: Carcinogenic and non carcinogenic | K13: Acrylonitrile | L13: 107-13-1 | M13: 0.27
A14: Ammonia | B14: 7664-41-7 | D14: ='DALY-Calc'!AG7 -> 0 | E14: Not carcinogenic | K14: Ammonia | L14: 7664-41-7 | M14: 28
A15: Benzene | B15: 71-43-2 | C15: 0 | D15: ='DALY-Calc'!AG32 -> 0 | E15: Carcinogenic and non carcinogenic | K15: Benzene | L15: 71-43-2 | M15: 2.5
A16: Benzyl chloride | B16: 100-44-7 | D16: ='DALY-Calc'!AG34 -> 0 | E16: Carcinogenic only | K16: Benzyl chloride | L16: 100-44-7 | M16: 0.5
A17: Cadmium | B17: 7440-43-9 | D17: ='DALY-Calc'!AG19 -> 0 | E17: Carcinogenic and non carcinogenic | K17: Cadmium | L17: 7440-43-9 | M17: 0.0026
A18: Carbon tetrachloride | B18: 56-23-5 | D18: ='DALY-Calc'!AG18 -> 0 | E18: Carcinogenic and non carcinogenic | K18: Carbon tetrachloride | L18: 56-23-5 | M18: 0.68
A19: Chromium | D19: ='DALY-Calc'!AG10 -> 0 | E19: Carcinogenic and non carcinogenic | K19: Chromium | M19: 0.0022
A20: CO | D20: ='DALY-Calc'!R47 -> 0 | K20: CO | M20: 810
A21: Crotonaldehyde | B21: 123-73-9 | D21: ='DALY-Calc'!AG8 -> 0 | E21: Carcinogenic only | K21: Crotonaldehyde | L21: 123-73-9 | M21: 4.7
A22: D-limonene | B22: 5989-27-5 | D22: ='DALY-Calc'!AG21 -> 0 | E22: Carcinogenic only | K22: D-limonene | L22: 5989-27-5 | M22: 23
A23: Ethanol | B23: 64-17-5 | D23: ='DALY-Calc'!AG25 -> 0 | E23: Carcinogenic only | K23: Ethanol | L23: 64-17-5 | M23: 860
A24: Ethylbenzene | B24: 100-41-4 | D24: ='DALY-Calc'!AG15 -> 0 | E24: Carcinogenic and non carcinogenic | K24: Ethylbenzene | L24: 100-41-4 | M24: 3.9
A25: Formaldehyde | B25: 50-00-0 | C25: 0 | D25: ='DALY-Calc'!AG4 -> 0 | E25: Carcinogenic and non carcinogenic | K25: Formaldehyde | L25: 50-00-0 | M25: 69
A26: Hexachlorobutadiene | B26: 87-68-3 | D26: ='DALY-Calc'!AG33 -> 0 | E26: Carcinogenic only | K26: Hexachlorobutadiene | L26: 87-68-3 | M26: 1.7
A27: Hexane | B27: 110-54-3 | D27: ='DALY-Calc'!AG22 -> 0 | E27: Not carcinogenic | K27: Hexane | L27: 110-54-3 | M27: 7.3
A28: Manganese | B28: 7439-96-5 | D28: ='DALY-Calc'!AG17 -> 0 | E28: Not carcinogenic | K28: Manganese | L28: 7439-96-5 | M28: 0.0033
A29: Methyl methacrylate | B29: 80-62-6 | D29: ='DALY-Calc'!AG31 -> 0 | E29: Not carcinogenic | K29: Methyl methacrylate | L29: 80-62-6 | M29: 0.27
A30: Methyl tert- butyl ether | B30: 1634-04-4 | D30: ='DALY-Calc'!AG29 -> 0 | E30: Carcinogenic and non carcinogenic | K30: Methyl tert- butyl ether | L30: 1634-04-4 | M30: 12
A31: Methylene chloride | B31: 75-09-2 | D31: ='DALY-Calc'!AG39 -> 0 | E31: Carcinogenic and non carcinogenic | K31: Methylene chloride | L31: 75-09-2 | M31: 8.2
A32: Naphtalene | B32: 91-58-7 | C32: 0 | D32: ='DALY-Calc'!AG16 -> 0 | E32: Not carcinogenic | K32: Naphtalene | L32: 91-58-7 | M32: 1.2
A33: NO2 | C33: 0 | D33: ='DALY-Calc'!R52 -> 0 | K33: NO2 | M33: 13.1
A34: Ozone | B34: 10028-15-6 | D34: ='DALY-Calc'!AG5 -> 0 | E34: Carcinogenic only | K34: Ozone | L34: 10028-15-6 | M34: 17.2
A35: Ozone | D35: ='DALY-Calc'!R57 -> 0 | K35: Ozone | M35: 17.2
A36: PM2,5 | C36: 48.95384615 | D36: ='DALY-Calc'!R44 -> 2260.463887 | K36: PM2,5 | M36: 15.9
A37: SO2 | D37: ='DALY-Calc'!R63 -> 0 | K37: SO2 | M37: 2.9
A38: Styrene | B38: 100-42-5 | C38: 0 | D38: ='DALY-Calc'!AG14 -> 0 | E38: Carcinogenic and non carcinogenic | K38: Styrene | L38: 100-42-5 | M38: 5.9
A39: Tetrachloroethylene | B39: 127-18-4 | D39: ='DALY-Calc'!AG26 -> 0 | E39: Carcinogenic and non carcinogenic | K39: Tetrachloroethylene | L39: 127-18-4 | M39: 1.7
A40: Toluene | B40: 108-88-3 | C40: 0 | D40: ='DALY-Calc'!AG20 -> 0 | E40: Carcinogenic and non carcinogenic | K40: Toluene | L40: 108-88-3 | M40: 2.3
A41: Trichloroethylene | B41: 79-01-6 | C41: 0 | D41: ='DALY-Calc'!AG24 -> 0 | E41: Carcinogenic only | K41: Trichloroethylene | L41: 79-01-6 | M41: 0.46
A42: Vinyl chloride | B42: 75-01-4 | D42: ='DALY-Calc'!AG30 -> 0 | E42: Carcinogenic and non carcinogenic | K42: Vinyl chloride | L42: 75-01-4 | M42: 1.7
A43: Xylenes | B43: 1330-20-7 | D43: ='DALY-Calc'!AG9 -> 0 | E43: Carcinogenic and non carcinogenic | K43: Xylenes | L43: 1330-20-7 | M43: 7.4

Sheet DALY-Calc (hidden)
A1: substance | B1: CAS | C1: page | D1: carcinogenic | J1: noncarcinogenic, oral | O1: noncarcinogenic, inhalation | T1: age | Y1: Cmoy | Z1: polluant inhalé par an (kg.an) | AD1: DALY perdus (par an par 100 000 personnes) | AH1: cancerigène
D2: IARC class | E2: dD/dR(y) | F2: dD/dTU (-) | G2: dTU/dl (kg-1) | H2: dD/dl (y.kg-1) | I2: kdD/dl | J2: dD/dR(y) | K2: dR/dTU (-) | L2: dTU/dl (kg-1) | M2: dD/dl (y.kg-1) | N2: kdD/dl | O2: dD/dR (y) | P2: dE/dTU (-) | Q2: dTU/dl (kg-1) | R2: dD/dl (y.kg-1) | S2: kdD/dl | T2: <2 | U2: 2_16 | V2: >16 | W2: tot | Z2: <2 | AA2: 2_16 | AB2: >16 | AC2: tot | AD2: <2 | AE2: 2_16 | AF2: >16 | AG2: tot
A3: acroléine | B3: 107-02-8 | C3: 195 | J3: 2.7 | K3: =1.6*10^-1 -> 0.16 | L3: =5.1*10 -> 51 | M3: =2.2*10 -> 22 | N3: 126 | O3: 2.7 | P3: =1.6*10^-1 -> 0.16 | Q3: =1.2*10^2 -> 120 | R3: 51.84 | S3: 277 | T3: cancer adaf | X3: =A3 -> acroléine | Y3: =Résultats!$C$12 -> 0 | Z3: =Y3*10^-9*$T$8*365*$T$6/100 -> 0 | AA3: =Y3*$U$6*$U$8*10^-11*365 -> 0 | AB3: =Y3*10^-9*$V$6*$V$8*365/100 -> 0 | AC3: =Y3*10^-9*365*$W$6*$W$8/100 -> 0 | AD3: =Z3*($H3*T$4+$R3)*100000 -> 0 | AE3: =AA3*($H3*U$4+$R3)*100000 -> 0 | AF3: =AB3*($H3*V$4+$R3)*100000 -> 0 | AG3: =(AD3*$T$10+AE3*$U$10+AF3*$V$10)/100 -> 0 | AH3: =IF(H3=0,"non cancérigène",IF(M3+R3=0,"seulement cancérigène","cancérigène et non cancérigène")) -> non cancérigène
A4: Formaldéhyde | B4: 50-00-0 | C4: 216 | D4: 2A | E4: 28.3 | F4: =1.6*10^-2 -> 0.016 | G4: =1.7*10 -> 17 | H4: 0.769 | I4: 26 | J4: 2.7 | K4: =1.6*10^-1 -> 0.16 | L4: 0.017 | M4: 0.0073 | N4: 126 | T4: 10 | U4: 3 | V4: 1 | W4: =(T4*T10+U4*U10+V4*V10)/100 -> 1.65 | X4: =A4 -> Formaldéhyde | Y4: =Résultats!$C$25 -> 0 | Z4: =Y4*10^-9*$T$8*365*$T$6/100 -> 0 | AA4: =Y4*$U$6*$U$8*10^-11*365 -> 0 | AB4: =Y4*10^-9*$V$6*$V$8*365/100 -> 0 | AC4: =Y4*10^-9*365*$W$6*$W$8/100 -> 0 | AD4: =Z4*($H4*T$4+$R4)*100000 -> 0 | AE4: =AA4*($H4*U$4+$R4)*100000 -> 0 | AF4: =AB4*($H4*V$4+$R4)*100000 -> 0 | AG4: =(AD4*$T$10+AE4*$U$10+AF4*$V$10)/100 -> 0 | AH4: =IF(H4=0,"non cancérigène",IF(M4+R4=0,"seulement cancérigène","cancérigène et non cancérigène")) -> cancérigène et non cancérigène
A5: Ozone | B5: 10028-15-6 | C5: 193 | E5: 16.5 | F5: =2.6*10^-2 -> 0.026 | G5: =2.2*10 -> 22 | H5: =9.2*10^-1 -> 0.92 | I5: 24 | T5: %day at home | X5: Ozone | Y5: =Résultats!$C$34 -> 0 | Z5: 0 | AA5: 0 | AB5: 0 | AC5: 0 | AD5: 0 | AE5: 0 | AF5: 0 | AG5: 0 | AH5: seulement cancérigène
A6: Acetaldéhyde | B6: 75-07-0 | C6: 231 | D6: 2B | E6: 16.5 | F6: =2.6*10^-2 -> 0.026 | G6: =1.5*10^-2 -> 0.015 | H6: =6.4*10^-3 -> 0.0064 | I6: 24 | O6: 2.7 | P6: =1.6*10^-1 -> 0.16 | Q6: =7.5*10^-2 -> 0.075 | R6: =3.2*10^-2 -> 0.032 | S6: 215 | T6: =Parameters!L4 -> 75 | U6: =Parameters!L5 -> 75 | V6: =Parameters!L6 -> 69 | W6: =(T6*T10+U6*U10+V6*V10)/100 -> 70.32 | X6: Acetaldéhyde | Y6: =Résultats!$C$11 -> 0 | Z6: 0 | AA6: 0 | AB6: 0 | AC6: 0 | AD6: 0 | AE6: 0 | AF6: 0 | AG6: 0 | AH6: cancérigène et non cancérigène
A7: Ammonia | B7: 7664-41-7 | C7: 233 | O7: 2.7 | P7: =1.6*10^-1 -> 0.16 | Q7: =1.4*10^-1 -> 0.14 | R7: =6.1*10^-2 -> 0.061 | S7: 44 | T7: air intake | X7: Ammonia | Y7: =Résultats!$C$14 -> 0 | Z7: 0 | AA7: 0 | AB7: 0 | AC7: 0 | AD7: 0 | AE7: 0 | AF7: 0 | AG7: 0 | AH7: non cancérigène
A8: Crotonaldéhyde | B8: 123-73-9 | C8: 199 | E8: 22.5 | F8: =1.4*10^-2 -> 0.014 | G8: =5.4*10^-1 -> 0.54 | H8: =1.7*10^-1 -> 0.17 | I8: 23 | T8: =Parameters!M4 -> 7 | U8: =Parameters!M5 -> 13 | V8: =Parameters!M6 -> 15 | W8: =(T8*T10+U8*U10+V8*V10)/100 -> 14.38 | X8: Crotonaldéhyde | Y8: =Résultats!$C$21 -> 0 | Z8: 0 | AA8: 0 | AB8: 0 | AC8: 0 | AD8: 0 | AE8: 0 | AF8: 0 | AG8: 0 | AH8: seulement cancérigène
A9: Xylenes | B9: 1330-20-7 | C9: 200 | D9: 3 | E9: 6.2 | F9: =4.7*10^-2 -> 0.047 | G9: =7.4*10^-4 -> 0.00074 | H9: =2.1*10^-4 -> 0.00021 | I9: 23 | J9: 2.7 | K9: =1.6*10^-1 -> 0.16 | L9: =1.4*10^-3 -> 0.0014 | M9: =6.1*10^-4 -> 0.00061 | N9: 126 | O9: 2.7 | P9: =1.6*10^-1 -> 0.16 | Q9: =1.7*10^-2 -> 0.017 | R9: =7.2*10^-3 -> 0.0072 | S9: 215 | T9: %population | X9: Xylenes | Y9: =Résultats!$C$43 -> 0 | Z9: 0 | AA9: 0 | AB9: 0 | AC9: 0 | AD9: 0 | AE9: 0 | AF9: 0 | AG9: 0 | AH9: cancérigène et non cancérigène
A10: chromium | E10: 16.5 | F10: 0.026 | G10: 44 | H10: 19 | I10: 57 | J10: 5.4 | K10: 0.32 | L10: 0.10017 | M10: 0.044075 | N10: 126 | O10: 2.7 | P10: 0.16 | Q10: 57 | R10: 24 | S10: 215 | T10: =Parameters!J4 -> 3 | U10: =Parameters!J5 -> 19 | V10: =Parameters!J6 -> 78 | W10: =SUM(T10:V10) -> 100 | X10: chromium | Y10: =Résultats!$C$19 -> 0 | Z10: 0 | AA10: 0 | AB10: 0 | AC10: 0 | AD10: 0 | AE10: 0 | AF10: 0 | AG10: 0 | AH10: cancérigène et non cancérigène
A11: 1,4-Dichlorobenzene | B11: 106-46-7 | C11: 195 | D11: 2B | E11: 11.5 | F11: 0.03 | G11: 0.0036 | H11: 0.0012 | I11: 26 | O11: 2.7 | P11: 0.16 | Q11: 0.0044 | R11: 0.0019 | S11: 126 | X11: 1,4-Dichlorobenzene | Y11: =Résultats!$C$7 -> 0 | Z11: 0 | AA11: 0 | AB11: 0 | AC11: 0 | AD11: 0 | AE11: 0 | AF11: 0 | AG11: 0 | AH11: cancérigène et non cancérigène
A12: 1,1 Dichloroethene | B12: 75-35-4 | C12: 231 | D12: 3 | E12: 16.5 | F12: =2.6*10^-2 -> 0.026 | G12: =1.2*10^-1 -> 0.12 | H12: =5*10^-2 -> 0.05 | I12: 24 | J12: 2.7 | K12: 0.16 | L12: 0.079 | M12: 0.034 | N12: 66 | O12: 2.7 | P12: 0.16 | Q12: 0.018 | R12: 0.008 | S12: 126 | X12: 1,1 Dichloroethene | Y12: =Résultats!$C$2 -> 0 | Z12: 0 | AA12: 0 | AB12: 0 | AC12: 0 | AD12: 0 | AE12: 0 | AF12: 0 | AG12: 0 | AH12: cancérigène et non cancérigène
A13: acrylonitrile | B13: 107-13-1 | C13: 195 | D13: 2B | E13: 16.5 | F13: 0.026 | G13: 0.14 | H13: 0.058 | I13: 24 | O13: 2.7 | P13: 0.16 | Q13: 0.69 | R13: 0.3 | S13: 145 | X13: acrylonitrile | Y13: =Résultats!$C$13 -> 0 | Z13: 0 | AA13: 0 | AB13: 0 | AC13: 0 | AD13: 0 | AE13: 0 | AF13: 0 | AG13: 0 | AH13: cancérigène et non cancérigène
A14: styrene | B14: 100-42-5 | C14: 193 | D14: 2B | E14: 7.6 | F14: 0.045 | G14: 0.098 | H14: 0.033 | I14: 22 | J14: 2.7 | K14: 0.16 | L14: 0.00091 | M14: 0.00039 | N14: 215 | O14: 2.7 | P14: 0.16 | Q14: 0.019 | R14: 0.0083 | S14: 96 | X14: styrene | Y14: =Résultats!$C$38 -> 0 | Z14: 0 | AA14: 0 | AB14: 0 | AC14: 0 | AD14: 0 | AE14: 0 | AF14: 0 | AG14: 0 | AH14: cancérigène et non cancérigène
A15: ethylbenzene | B15: 100-41-4 | C15: 193 | D15: 2B | E15: 16.5 | F15: 0.026 | G15: 0.00053 | H15: 0.00022 | I15: 24 | J15: 2.7 | K15: 0.16 | L15: 0.0052 | M15: 0.0023 | N15: 215 | O15: 2.7 | P15: 0.16 | Q15: 0.00075 | R15: 0.00033 | S15: 126 | X15: ethylbenzene | Y15: =Résultats!$C$24 -> 0 | Z15: 0 | AA15: 0 | AB15: 0 | AC15: 0 | AD15: 0 | AE15: 0 | AF15: 0 | AG15: 0 | AH15: cancérigène et non cancérigène
A16: naphtalene | B16: 91-58-7 | C16: 239 | J16: 2.7 | K16: 0.16 | L16: 0.0036 | M16: 0.0016 | N16: 215 | X16: naphtalene | Y16: =Résultats!$C$32 -> 0 | Z16: 0 | AA16: 0 | AB16: 0 | AC16: 0 | AD16: 0 | AE16: 0 | AF16: 0 | AG16: 0 | AH16: non cancérigène
A17: manganese | B17: 7439-96-5 | C17: 230 | J17: 2.7 | K17: 0.16 | L17: 0.44 | M17: 0.19 | N17: 44 | O17: 2.7 | P17: 0.16 | Q17: 52 | R17: 23 | S17: 124 | X17: manganese | Y17: =Résultats!$C$28 -> 0 | Z17: 0 | AA17: 0 | AB17: 0 | AC17: 0 | AD17: 0 | AE17: 0 | AF17: 0 | AG17: 0 | AH17: non cancérigène
A18: carbon tetrachloride | B18: 56-23-5 | C18: 221 | D18: 2B | E18: 22.5 | F18: 0.014 | G18: 10 | H18: 3.15 | I18: 23 | J18: 2.7 | K18: 0.16 | L18: 0.72 | M18: 0.31 | N18: 215 | X18: carbon tetrachloride | Y18: =Résultats!$C$18 -> 0 | Z18: 0 | AA18: 0 | AB18: 0 | AC18: 0 | AD18: 0 | AE18: 0 | AF18: 0 | AG18: 0 | AH18: cancérigène et non cancérigène
A19: Cadmium | B19: 7440-43-9 | C19: 230 | D19: 1 | E19: 16.5 | F19: 0.026 | G19: 0.66 | H19: 0.28 | I19: 57 | J19: 2.7 | K19: 0.16 | L19: 0.12 | M19: 0.054 | N19: 44 | X19: Cadmium | Y19: =Résultats!$C$17 -> 0 | Z19: 0 | AA19: 0 | AB19: 0 | AC19: 0 | AD19: 0 | AE19: 0 | AF19: 0 | AG19: 0 | AH19: cancérigène et non cancérigène
A20: Toluene | B20: 108-88-3 | C20: 196 | D20: 3 | E20: 6.2 | F20: 0.047 | G20: 0.00075 | H20: 0.00022 | I20: 23 | J20: 2.7 | K20: 0.16 | L20: 0.0023 | M20: 0.00098 | N20: 215 | O20: 2.7 | P20: 0.16 | Q20: 0.011 | R20: 0.0047 | S20: 57 | X20: Toluene | Y20: =Résultats!$C$40 -> 0 | Z20: 0 | AA20: 0 | AB20: 0 | AC20: 0 | AD20: 0 | AE20: 0 | AF20: 0 | AG20: 0 | AH20: cancérigène et non cancérigène
A21: d-limonine | B21: 5989-27-5 | C21: 223 | D21: 3 | E21: 11.5 | F21: =3*10^-2 -> 0.03 | G21: 0.011 | H21: 0.003795 | I21: 26 | X21: d-limonine | Y21: =Résultats!$C$22 -> 0 | Z21: =Y21*10^-9*$T$8*365*$T$6/100 -> 0 | AA21: =Y21*$U$6*$U$8*10^-11*365 -> 0 | AB21: =Y21*10^-9*$V$6*$V$8*365/100 -> 0 | AC21: =Y21*10^-9*365*$W$6*$W$8/100 -> 0 | AD21: 0 | AE21: 0 | AF21: 0 | AG21: =(AD21*$T$10+AE21*$U$10+AF21*$V$10)/100 -> 0 | AH21: seulement cancérigène
A22: Hexane | B22: 110-54-3 | C22: 196 | O22: 2.7 | P22: 0.16 | Q22: 0.018 | R22: 0.0077 | S22: 57 | X22: Hexane | Y22: =Résultats!$C$27 -> 0 | Z22: 0 | AA22: 0 | AB22: 0 | AC22: 0 | AD22: 0 | AE22: 0 | AF22: 0 | AG22: 0 | AH22: non cancérigène
A23: 1,2-Dibromoethane | B23: 106-93-4 | C23: 195 | D23: 2A | E23: 22.5 | F23: 0.014 | G23: 15 | H23: 0.48 | I23: 23 | X23: 1,2-Dibromoethane | Y23: =Résultats!$C$6 -> 0 | Z23: 0 | AA23: 0 | AB23: 0 | AC23: 0 | AD23: 0 | AE23: 0 | AF23: 0 | AG23: 0 | AH23: seulement cancérigène
A24: Trichloroethylene | B24: 79-01-6 | C24: 234 | D24: 2A | E24: 11.5 | F24: 0.03 | G24: 0.0034 | H24: 0.0012 | I24: 26 | X24: Trichloroethylene | Y24: =Résultats!$C$41 -> 0 | Z24: 0 | AA24: 0 | AB24: 0 | AC24: 0 | AD24: 0 | AE24: 0 | AF24: 0 | AG24: 0 | AH24: seulement cancérigène
A25: Ethanol | B25: 64-17-5 | C25: 226 | D25: 1 | E25: 22.5 | F25: =1.4*10^-2 -> 0.014 | G25: 0.00025 | H25: 7.9e-05 | I25: 23 | X25: Ethanol | Y25: =Résultats!$C$23 -> 0 | Z25: 0 | AA25: 0 | AB25: 0 | AC25: 0 | AD25: 0 | AE25: 0 | AF25: 0 | AG25: 0 | AH25: seulement cancérigène
A26: Tetrachloroethylene | B26: 127-18-4 | C26: 199 | D26: 2A | E26: 28.3 | F26: 0.016 | G26: 0.023 | H26: 0.01 | I26: 26 | J26: 2.7 | K26: 0.16 | L26: 0.065 | M26: 0.028 | N26: 215 | X26: Tetrachloroethylene | Y26: =Résultats!$C$39 -> 0 | Z26: 0 | AA26: 0 | AB26: 0 | AC26: 0 | AD26: 0 | AE26: 0 | AF26: 0 | AG26: 0 | AH26: cancérigène et non cancérigène
A27: 2-butoxyethanol | B27: 111-76-2 | C27: 197 | J27: 2.7 | K27: 0.16 | L27: 0.029 | M27: 0.012 | N27: 128 | O27: 2.7 | P27: 0.16 | Q27: 0.015 | R27: 0.0067 | S27: 128 | X27: 2-butoxyethanol | Y27: =Résultats!$C$8 -> 0 | Z27: 0 | AA27: 0 | AB27: 0 | AC27: 0 | AD27: 0 | AE27: 0 | AF27: 0 | AG27: 0 | AH27: non cancérigène
A28: 1,2 Dichloroethane | B28: 107-06-2 | C28: 195 | D28: 2B | E28: 13.6 | F28: 0.035 | G28: 0.28 | H28: 0.13 | I28: 23 | X28: 1,2 Dichloroethane | Y28: =Résultats!$C$5 -> 0 | Z28: 0 | AA28: 0 | AB28: 0 | AC28: 0 | AD28: 0 | AE28: 0 | AF28: 0 | AG28: 0 | AH28: seulement cancérigène
A29: Methyl tert- butyl ether | B29: 1634-04-4 | C29: 204 | D29: 3 | E29: 28.3 | F29: 0.016 | G29: 0.0033 | H29: 0.0015 | I29: 26 | O29: 2.7 | P29: 0.16 | Q29: 0.0013 | R29: 0.00055 | S29: 126 | X29: Methyl tert- butyl ether | Y29: =Résultats!$C$30 -> 0 | Z29: 0 | AA29: 0 | AB29: 0 | AC29: 0 | AD29: 0 | AE29: 0 | AF29: 0 | AG29: 0 | AH29: cancérigène et non cancérigène
A30: vinyl chloride | B30: 75-01-4 | C30: 231 | D30: 1 | E30: 22.5 | F30: 0.014 | G30: 0.12 | H30: 0.038 | I30: 23 | J30: 2.7 | K30: 0.16 | L30: 16 | M30: 6.91 | N30: 66 | O30: 2.7 | P30: 0.16 | Q30: 0.13 | R30: 0.057 | S30: 126 | X30: vinyl chloride | Y30: =Résultats!$C$42 -> 0 | Z30: 0 | AA30: 0 | AB30: 0 | AC30: 0 | AD30: 0 | AE30: 0 | AF30: 0 | AG30: 0 | AH30: cancérigène et non cancérigène
A31: Methyl methacrylate | B31: 80-62-6 | C31: 235 | J31: 2.7 | K31: 0.16 | L31: 0.0019 | M31: 0.00081 | N31: 126 | O31: 2.7 | P31: 0.16 | Q31: 0.16 | R31: 0.069 | S31: 66 | X31: Methyl methacrylate | Y31: =Résultats!$C$29 -> 0 | Z31: 0 | AA31: 0 | AB31: 0 | AC31: 0 | AD31: 0 | AE31: 0 | AF31: 0 | AG31: 0 | AH31: non cancérigène
A32: benzene | B32: 71-43-2 | C32: 229 | D32: 1 | E32: 16.5 | F32: 0.026 | G32: 0.014 | H32: 0.0058 | I32: 24 | O32: 2.7 | P32: 0.16 | Q32: 0.0073 | R32: 0.0031 | S32: 49 | X32: benzene | Y32: =Résultats!$C$15 -> 0 | Z32: 0 | AA32: 0 | AB32: 0 | AC32: 0 | AD32: 0 | AE32: 0 | AF32: 0 | AG32: 0 | AH32: cancérigène et non cancérigène
A33: Hexachlorobutadiene | B33: 87-68-3 | C33: 237 | D33: 3 | E33: 11.5 | F33: 0.03 | G33: 0.035 | H33: 0.012 | I33: 26 | X33: Hexachlorobutadiene | Y33: =Résultats!$C$26 -> 0 | Z33: 0 | AA33: 0 | AB33: 0 | AC33: 0 | AD33: 0 | AE33: 0 | AF33: 0 | AG33: 0 | AH33: seulement cancérigène
A34: Benzyl chloride | B34: 100-44-7 | C34: 193 | D34: 2A | E34: 13.6 | F34: 0.035 | G34: 0.066 | H34: 0.031 | I34: 23 | X34: Benzyl chloride | Y34: =Résultats!$C$16 -> 0 | Z34: 0 | AA34: 0 | AB34: 0 | AC34: 0 | AD34: 0 | AE34: 0 | AF34: 0 | AG34: 0 | AH34: seulement cancérigène
A35: 1,1,2,2 Tetrachloroethane | B35: 79-34-5 | C35: 235 | D35: 3 | E35: 22.5 | F35: 0.014 | G35: 0.11 | H35: 0.034 | I35: 23 | X35: 1,1,2,2 Tetrachloroethane | Y35: =Résultats!$C$3 -> 0 | Z35: 0 | AA35: 0 | AB35: 0 | AC35: 0 | AD35: 0 | AE35: 0 | AF35: 0 | AG35: 0 | AH35: seulement cancérigène
A36: 2-Methoxyethanol | B36: 109-86-4 | C36: 196 | O36: 2.7 | P36: 0.16 | Q36: 0.038 | R36: 0.017 | S36: 215 | X36: 2-Methoxyethanol | Y36: =Résultats!$C$10 -> 0 | Z36: 0 | AA36: 0 | AB36: 0 | AC36: 0 | AD36: 0 | AE36: 0 | AF36: 0 | AG36: 0 | AH36: non cancérigène
A37: 1,1,2-Trichloroethane | B37: 79-00-5 | C37: 234 | D37: 3 | E37: 22.5 | F37: 0.014 | G37: 0.074 | H37: 0.023 | I37: 23 | J37: 2.7 | K37: 0.16 | L37: 0.23 | M37: 0.1 | N37: 215 | X37: 1,1,2-Trichloroethane | Y37: =Résultats!$C$4 -> 0 | Z37: 0 | AA37: 0 | AB37: 0 | AC37: 0 | AD37: 0 | AE37: 0 | AF37: 0 | AG37: 0 | AH37: cancérigène et non cancérigène
A38: 2-Ethoxyethanol | X38: 2-Ethoxyethanol | Y38: =Résultats!$C$9 -> 0 | Z38: 0 | AA38: 0 | AB38: 0 | AC38: 0 | AD38: 0 | AE38: 0 | AF38: 0 | AG38: 0 | AH38: non cancérigène
A39: Methylene chloride | B39: 75-09-2 | C39: 231 | D39: 2B | E39: 7.6 | F39: 0.045 | G39: 0.0032 | H39: 0.0011 | I39: 22 | J39: 2.7 | K39: 0.16 | L39: 0.043 | M39: 0.019 | N39: 126 | X39: Methylene chloride | Y39: =Résultats!$C$31 -> 0 | Z39: 0 | AA39: 0 | AB39: 0 | AC39: 0 | AD39: 0 | AE39: 0 | AF39: 0 | AG39: 0 | AH39: cancérigène et non cancérigène
D42: b-coefficient | G42: y0 | H42: DALYs lost per incidence | K42: Cmoy | L42: disease incidence | O42: total DALY lost per incidence | R42: total DALY per pollutant | U42: total DALY lost (per year per 100000 person)
D43: mediane | E43: min | F43: max | H43: médiane | I43: min | J43: max | L43: médiane | M43: min | N43: max | O43: médiane | P43: min | Q43: max | R43: médiane | S43: min | T43: max | U43: médiane | V43: min | W43: max
A44: IND | B44: PM2,5 | C44: total mortality | D44: 0.058 | E44: 0.02 | F44: 0.1 | G44: =7.4*10^-3 -> 0.0074 | H44: 1.4 | I44: 0.14 | J44: 14 | K44: =Résultats!C36 -> 48.95384615 | L44: =-($G44*(EXP(-D44*$W$6/100*$K44)-1))*100000 -> 639.5120119 | M44: =-($G44*(EXP(-E44*$W$6/100*$K44)-1))*100000 -> 368.2716692 | N44: =-($G44*(EXP(-F44*$W$6/100*$K44)-1))*100000 -> 716.3298272 | O44: =L44*H44 -> 895.3168167 | P44: =M44*I44 -> 51.55803369 | Q44: 10028.61758 | R44: =O44+O45+O46 -> 2260.463887 | S44: =P44+P45+P46 -> 200.4052328 | T44: 12443.9464 | U44: =R44+R47+R52+R57+R63 -> 2260.463887 | V44: =S44+S47+S52+S57+S63 -> 200.4052328 | W44: 12443.9464
C45: chronic bronchitis | D45: 0.091 | E45: 0.078 | F45: 0.105 | G45: =0.4*10^-3 -> 0.0004 | H45: 1.2 | I45: 0.12 | J45: 12 | K45: =K44 -> 48.95384615 | L45: =-($G45*(EXP(-D45*$W$6/100*$K45)-1))*100000 -> 38.25585565 | M45: =-($G45*(EXP(-E45*$W$6/100*$K45)-1))*100000 -> 37.27142206 | N45: =-($G45*(EXP(-F45*$W$6/100*$K45)-1))*100000 -> 38.92284504 | O45: =L45*H45 -> 45.90702677 | P45: 4.472570647 | Q45: 467.0741405
C46: nonfatal stroke | D46: 0.025 | E46: 0.002 | F46: 0.048 | G46: =2*10^-3 -> 0.002 | H46: 11.43 | I46: 10.85 | J46: 12.05 | K46: =K45 -> 48.95384615 | L46: 115.4190765 | M46: 13.30641737 | N46: 161.6808863 | O46: 1319.240044 | P46: 144.3746285 | Q46: 1948.254679
B47: CO | C47: hospital admission | H47: =4*10^-4 -> 0.0004 | I47: =4*10^-4 -> 0.0004 | J47: 0.0004 | K47: =Résultats!C20 -> 0 | L47: 0 | M47: 0 | N47: 0 | O47: 0 | P47: 0 | Q47: 0 | R47: =O47+O49+O48+O50+O51 -> 0 | S47: =P47+P49+P48+P50+P51 -> 0 | T47: 0
C48: Asthma | D48: 0.033 | E48: 0.016 | F48: 0.05 | G48: =1.8*10^-3 -> 0.0018 | H48: =4*10^-4 -> 0.0004 | I48: 0.0004 | J48: 0.0004 | K48: =K47 -> 0 | L48: 0 | M48: 0 | N48: 0 | O48: 0 | P48: 0 | Q48: 0
C49: Lung disease | D49: 0.025 | E49: 1e-07 | F49: 0.057 | G49: =2.1*10^-3 -> 0.0021 | H49: 0.0004 | I49: 0.0004 | J49: 0.0004 | K49: =K48 -> 0 | L49: 0 | M49: 0 | N49: 0 | O49: 0 | P49: 0 | Q49: 0
C50: Dysrhythmias | D50: 0.058 | E50: 0.012 | F50: 0.102 | G50: =2.4*10^-3 -> 0.0024 | H50: 0.0004 | I50: 0.0004 | J50: 0.0004 | K50: =K49 -> 0 | L50: 0 | M50: 0 | N50: 0 | O50: 0 | P50: 0 | Q50: 0
C51: Heart failure | D51: 0.034 | E51: 0.002 | F51: 0.066 | G51: =3.4*10^-3 -> 0.0034 | H51: 0.0004 | I51: 0.0004 | J51: 0.0004 | K51: =K50 -> 0 | L51: 0 | M51: 0 | N51: 0 | O51: 0 | P51: 0 | Q51: 0
B52: NO2 | C52: hospital admission | H52: 0.0004 | I52: 0.0004 | J52: 0.0004 | K52: =Résultats!C33 -> 0 | L52: 0 | M52: 0 | N52: 0 | O52: 0 | P52: 0 | Q52: 0 | R52: =O52+O53+O54+O55+O56 -> 0 | S52: =P52+P53+P54+P55+P56 -> 0 | T52: 0
C53: Respiratory issues | D53: 0.004 | E53: 1e-07 | F53: 0.008 | G53: =9.5*10^-3 -> 0.0095 | H53: 0.0004 | I53: 0.0004 | J53: 0.0004 | K53: =K52 -> 0 | L53: 0 | M53: 0 | N53: 0 | O53: 0 | P53: 0 | Q53: 0
C54: congestive heart failure | D54: 0.003 | E54: 0.001 | F54: 0.004 | G54: =3.4*10^-3 -> 0.0034 | H54: 0.0004 | I54: 0.0004 | J54: 0.0004 | K54: =K52 -> 0 | L54: 0 | M54: 0 | N54: 0 | O54: 0 | P54: 0 | Q54: 0
C55: ischemic heart disease | D55: 0.003 | E55: 0.002 | F55: 0.004 | G55: =8*10^-1 -> 0.8 | H55: 0.0004 | I55: 0.0004 | J55: 0.0004 | K55: =K52 -> 0 | L55: 0 | M55: 0 | N55: 0 | O55: 0 | P55: 0 | Q55: 0
C56: respiratory illness | H56: 0.0004 | I56: 0.0004 | J56: 0.0004 | K56: =K52 -> 0 | L56: 0 | M56: 0 | N56: 0 | O56: 0 | P56: 0 | Q56: 0
B57: Ozone | C57: Mortality | D57: 0.001 | E57: 1e-08 | F57: 0.002 | G57: =7.7*10^-4 -> 0.00077 | H57: 1 | I57: 0.1 | J57: 10 | K57: =Résultats!C34 -> 0 | L57: 0 | M57: 0 | N57: 0 | O57: 0 | P57: 0 | Q57: 0 | R57: =O57+O58+O59+O60+O61+O62 -> 0 | S57: =P57+P58+P59+P60+P61+P62 -> 0 | T57: 0
C58: hospital admission | H58: 0.0004 | I58: 0.0004 | J58: 0.0004 | K58: =K57 -> 0 | L58: 0 | M58: 0 | N58: 0 | O58: 0 | P58: 0 | Q58: 0
C59: Asthma | D59: 0.003 | E59: 0.001 | F59: 0.004 | G59: =1.8*10^-4 -> 0.00018 | H59: 0.0004 | I59: 0.0004 | J59: 0.0004 | K59: =K57 -> 0 | L59: 0 | M59: 0 | N59: 0 | O59: 0 | P59: 0 | Q59: 0
C60: Lung disease | D60: 0.003 | E60: 0.001 | F60: 0.005 | G60: =2.1*10^-4 -> 0.00021 | H60: 0.0004 | I60: 0.0004 | J60: 0.0004 | K60: =K57 -> 0 | L60: 0 | M60: 0 | N60: 0 | O60: 0 | P60: 0 | Q60: 0
C61: Respiratory infection | D61: 0.002 | E61: 0.001 | F61: 0.003 | G61: =5.8*10^-4 -> 0.00058 | H61: 0.0004 | I61: 0.0004 | J61: 0.0004 | K61: =K57 -> 0 | L61: 0 | M61: 0 | N61: 0 | O61: 0 | P61: 0 | Q61: 0
C62: Dysrhythmias | D62: 0.002 | E62: 1e-08 | F62: 0.004 | G62: =2.4*10^-4 -> 0.00024 | H62: 0.0004 | I62: 0.0004 | J62: 0.0004 | K62: =K57 -> 0 | L62: 0 | M62: 0 | N62: 0 | O62: 0 | P62: 0 | Q62: 0
B63: SO2 | C63: hospital admission | D63: 0.002 | E63: 1e-07 | F63: 0.003 | G63: =8*10^-3 -> 0.008 | H63: 0.0004 | I63: 0.0004 | J63: 0.0004 | K63: =Résultats!C37 -> 0 | L63: 0 | M63: 0 | N63: 0 | O63: 0 | P63: 0 | Q63: 0 | R63: =O63 -> 0 | S63: =P63 -> 0 | T63: 0

Sheet Graph hidden (hidden)
B1: Long-term Exposure
B2: ELV Indices | C2: DALY
A3: Acetaldehyde | B3: 1 | C3: =Résultats!D11 -> 0
A4: Acrolein | B4: 1 | C4: =Résultats!D12 -> 0
A5: a-Pinene | B5: 1 | C5: -
A6: Benzene | B6: 1 | C6: =Résultats!D15 -> 0
A7: Carbon dioxide | B7: 1 | C7: -
A8: Formaldehyde | B8: 1 | C8: =Résultats!D25 -> 0
A9: Naphthalene | B9: 1 | C9: =Résultats!D32 -> 0
A10: Nitrogen dioxide | B10: 1 | C10: =Résultats!D33 -> 0
A11: PM10 | B11: 1 | C11: -
A12: PM2.5 | B12: 1 | C12: =Résultats!D36 -> 2260.463887
A13: Radon | B13: 1 | C13: -
A14: Styrene | B14: 1 | C14: =Résultats!D38 -> 0
A15: Toluene | B15: 1 | C15: =Résultats!D40 -> 0
A16: Trichloroethylene | B16: 1 | C16: =Résultats!D41 -> 0
A17: TVOC | B17: 1 | C17: -
A18: Mold | B18: 1 | C18: -
B21: Short-term Exposure
B22: %
A23: Acetaldehyde | B23: =Inputs!B23 -> -
A24: Acrolein | B24: =Inputs!B24 -> 0
A25: a-Pinene | B25: =Inputs!B25 -> -
A26: Benzene | B26: =Inputs!B26 -> -
A27: Carbon dioxide | B27: =Inputs!B27 -> 0.3333333333
A28: Formaldehyde | B28: =Inputs!B28 -> 0
A29: Naphthalene | B29: =Inputs!B29 -> -
A30: Nitrogen dioxide | B30: =Inputs!B30 -> 0
A31: PM10 | B31: =Inputs!B31 -> 1
A32: PM2.5 | B32: =Inputs!B32 -> 1
A33: Radon | B33: =Inputs!B33 -> 0
A34: Styrene | B34: =Inputs!B34 -> -
A35: Toluene | B35: =Inputs!B35 -> -
A36: Trichloroethylene | B36: =Inputs!B36 -> -
A37: TVOC | B37: =Inputs!B37 -> 0
A38: Mold | B38: =Inputs!B38 -> -
